fUSD/lending_fUSD_20260520
["ID","MTS","AMOUNT","RATE_DAILY","PERIOD"]
[422665348,1779223854000,-1492.98,0.0002863,2]
[422665337,1779223854000,-503.0,0.00028426,3]
[422665307,1779223854000,-1122.7,0.00027541,7]
[422665335,1779223854000,-1122.7,0.00028406,7]
[422665365,1779223854000,-1493.0,0.00028693,30]
[422665306,1779223854000,-204.18221279,0.000275,2]
[422665320,1779223854000,-160.0,0.00028,2]
[422665309,1779223854000,-803.1,0.000277,7]
[422665308,1779223854000,-324.0,0.00027616,14]
[422665319,1779223854000,-215.15951567,0.00028,30]
[422665311,1779223854000,-503.0,0.00027782,2]
[422665313,1779223854000,-1122.7,0.0002783,30]
[422665315,1779223854000,-1197.4983951,0.00027983,2]
[422665314,1779223854000,-3592.4951851,0.0002797,2]
[422665310,1779223854000,-362.1644251,0.00027702,2]
[422665312,1779223854000,-500.0,0.000278,7]
[422665318,1779223854000,-124514.22854957,0.00028,30]
[422665317,1779223854000,-51602.89043529,0.00028,2]
[422665321,1779223854000,-643.0,0.00028,2]
[422665323,1779223854000,-160.0,0.00028,10]
[422665324,1779223854000,-600.0,0.00028,2]
[422665325,1779223854000,-208.58623393,0.00028,30]
[422665322,1779223854000,-160.0,0.00028,30]
[422665328,1779223854000,-1122.7,0.00028118,2]
[422665330,1779223854000,-382.3,0.00028267,2]
[422665326,1779223854000,-865.3698394,0.00028,30]
[422665331,1779223854000,-6865.5,0.000283,14]
[422665327,1779223854000,-215.15951567,0.00028,10]
[422665332,1779223854000,-362.1644251,0.00028311,2]
[422665329,1779223854000,-5231.64,0.00028142,7]
[422665333,1779223854000,-200.0,0.00028327,2]
[422665336,1779223854000,-1300.0,0.00028426,60]
[422665367,1779223854000,-1122.7,0.00028695,30]
[422665316,1779223854000,-10234.796639,0.00027983,2]
[422665362,1779223854000,-1492.98,0.00028693,30]
[422665398,1779223854000,-1778.78,0.0002882,2]
[422665402,1779223854000,-2314.0,0.0002885,3]
[422665401,1779223854000,-318.48,0.0002882,2]
[422665400,1779223854000,-1493.0,0.0002882,2]
[422665404,1779223854000,-2314.0,0.0002885,3]
[422665394,1779223854000,-215.15951567,0.000288,10]
[422665406,1779223854000,-1587.0,0.0002885,3]
[422665408,1779223854000,-1779.45,0.00028852,7]
[422665405,1779223854000,-1587.0,0.0002885,3]
[422665410,1779223854000,-1492.98,0.00028852,7]
[422665412,1779223854000,-606.27,0.00028852,7]
[422665409,1779223854000,-319.2,0.00028852,7]
[422665407,1779223854000,-1587.0,0.0002885,3]
[422665411,1779223854000,-1778.78,0.00028852,7]
[422665413,1779223854000,-1493.0,0.00028852,7]
[422665423,1779223854000,-1779.45,0.00028915,2]
[422665415,1779223854000,-1779.45,0.00028883,30]
[422665414,1779223854000,-318.48,0.00028852,7]
[422665417,1779223854000,-1492.98,0.00028883,30]
[422665416,1779223854000,-319.2,0.00028883,30]
[422665418,1779223854000,-1778.78,0.00028883,30]
[422665422,1779223854000,-6865.5,0.000289,14]
[422665420,1779223854000,-1493.0,0.00028883,30]
[422665424,1779223854000,-319.2,0.00028915,2]
[422665421,1779223854000,-318.48,0.00028883,30]
[422665425,1779223854000,-1492.98,0.00028915,2]
[422665363,1779223854000,-1778.78,0.00028693,30]
[422665399,1779223854000,-606.27,0.0002882,2]
[422665397,1779223854000,-1492.98,0.0002882,2]
[422665419,1779223854000,-606.27,0.00028883,30]
[422665396,1779223854000,-319.2,0.0002882,2]
[422665403,1779223854000,-2314.0,0.0002885,3]
[422665369,1779223854000,-319.2,0.00028725,2]
[422665379,1779223854000,-606.27,0.00028756,7]
[422665368,1779223854000,-1779.45,0.00028725,2]
[422665370,1779223854000,-1492.98,0.00028725,2]
[422665377,1779223854000,-1492.98,0.00028756,7]
[422665371,1779223854000,-1778.78,0.00028725,2]
[422665376,1779223854000,-319.2,0.00028756,7]
[422665375,1779223854000,-1779.45,0.00028756,7]
[422665373,1779223854000,-1493.0,0.00028725,2]
[422665378,1779223854000,-1778.78,0.00028756,7]
[422665374,1779223854000,-318.48,0.00028725,2]
[422665381,1779223854000,-318.48,0.00028756,7]
[422665372,1779223854000,-606.27,0.00028725,2]
[422665389,1779223854000,-318.48,0.00028788,30]
[422665387,1779223854000,-606.27,0.00028788,30]
[422665392,1779223854000,-208.58623393,0.000288,30]
[422665393,1779223854000,-160.0,0.000288,10]
[422665395,1779223854000,-1779.45,0.0002882,2]
[422665390,1779223854000,-215.15951567,0.000288,30]
[422665380,1779223854000,-1493.0,0.00028756,7]
[422665384,1779223854000,-319.2,0.00028788,30]
[422665386,1779223854000,-1778.78,0.00028788,30]
[422665382,1779223854000,-500.0,0.00028767,2]
[422665391,1779223854000,-160.0,0.000288,30]
[422665385,1779223854000,-1492.98,0.00028788,30]
[422665383,1779223854000,-1779.45,0.00028788,30]
[422665388,1779223854000,-1493.0,0.00028788,30]
[422665448,1779223855000,-215.15951567,0.00029,7]
[422665450,1779223855000,-160.0,0.00029,7]
[422665452,1779223855000,-1779.45,0.0002901,2]
[422665454,1779223855000,-1492.98,0.0002901,2]
[422665453,1779223855000,-319.2,0.0002901,2]
[422665455,1779223855000,-152.88105914,0.0002901,2]
[422665456,1779223855000,-1664.31014341,0.00012524,2]
[422665457,1779223855000,-175.81059483,0.00014064,2]
[422665460,1779223855000,-151.0,0.00015,2]
[422665458,1779223855000,-55935.80747127,0.00014122,2]
[422665463,1779223855000,-606.27,0.0002901,2]
[422665462,1779223855000,-1625.89894086,0.0002901,2]
[422665461,1779223855000,-498.0,0.00017673,2]
[422665465,1779223855000,-318.48,0.0002901,2]
[422665464,1779223855000,-1493.0,0.0002901,2]
[422665466,1779223855000,-163.0,0.00029014,3]
[422665470,1779223855000,-319.2,0.00029042,7]
[422665451,1779223855000,-215.15951567,0.00029,3]
[422665467,1779223855000,-2314.0,0.00029014,3]
[422665459,1779223855000,-151.0,0.00015,2]
[422665447,1779223855000,-324.0,0.00028997,14]
[422665440,1779223855000,-1492.98,0.00028979,30]
[422665445,1779223855000,-318.48,0.00028979,30]
[422665468,1779223855000,-720.0,0.00029014,3]
[422665427,1779223855000,-606.27,0.00028915,2]
[422665426,1779223855000,-1778.78,0.00028915,2]
[422665431,1779223855000,-1779.45,0.00028947,7]
[422665429,1779223855000,-318.48,0.00028915,2]
[422665434,1779223855000,-1778.78,0.00028947,7]
[422665428,1779223855000,-1493.0,0.00028915,2]
[422665430,1779223855000,-362.1644251,0.00028919,2]
[422665439,1779223855000,-319.2,0.00028979,30]
[422665449,1779223855000,-208.58623393,0.00029,7]
[422665432,1779223855000,-319.2,0.00028947,7]
[422665435,1779223855000,-606.27,0.00028947,7]
[422665436,1779223855000,-1493.0,0.00028947,7]
[422665438,1779223855000,-1779.45,0.00028979,30]
[422665437,1779223855000,-318.48,0.00028947,7]
[422665441,1779223855000,-1455.24006117,0.00028979,30]
[422665443,1779223855000,-606.27,0.00028979,30]
[422665442,1779223855000,-323.53993883,0.00028979,30]
[422665446,1779223855000,-1122.7,0.00028983,2]
[422665444,1779223855000,-1493.0,0.00028979,30]
[422665433,1779223855000,-1492.98,0.00028947,7]
[422665472,1779223855000,-1778.78,0.00029042,7]
[422665477,1779223855000,-1779.45,0.00029074,30]
[422665469,1779223855000,-1779.45,0.00029042,7]
[422665497,1779223855000,-319.2,0.00029137,7]
[422665501,1779223855000,-1493.0,0.00029137,7]
[422665499,1779223855000,-1778.78,0.00029137,7]
[422665498,1779223855000,-1492.98,0.00029137,7]
[422665506,1779223855000,-1779.45,0.00029169,30]
[422665505,1779223855000,-166.23098422,0.00029143,7]
[422665502,1779223855000,-318.48,0.00029137,7]
[422665504,1779223855000,-252.14733535,0.00029143,7]
[422665503,1779223855000,-170.58988333,0.00029138,2]
[422665500,1779223855000,-606.27,0.00029137,7]
[422665508,1779223855000,-1492.98,0.00029169,30]
[422665509,1779223855000,-1778.78,0.00029169,30]
[422665507,1779223855000,-319.2,0.00029169,30]
[422665511,1779223855000,-1493.0,0.00029169,30]
[422665512,1779223855000,-318.48,0.00029169,30]
[422665513,1779223855000,-163.0,0.0002917,3]
[422665515,1779223855000,-163.0,0.0002917,3]
[422665516,1779223855000,-320.0,0.0002917,3]
[422665514,1779223855000,-2314.0,0.0002917,3]
[422665496,1779223855000,-1779.45,0.00029137,7]
[422665495,1779223855000,-202.23592968,0.0002913,20]
[422665510,1779223855000,-606.27,0.00029169,30]
[422665490,1779223855000,-606.27,0.00029105,2]
[422665474,1779223855000,-1493.0,0.00029042,7]
[422665494,1779223855000,-500.0,0.0002913,5]
[422665471,1779223855000,-1492.98,0.00029042,7]
[422665478,1779223855000,-319.2,0.00029074,30]
[422665473,1779223855000,-606.27,0.00029042,7]
[422665475,1779223855000,-318.48,0.00029042,7]
[422665479,1779223855000,-1492.98,0.00029074,30]
[422665481,1779223855000,-606.27,0.00029074,30]
[422665491,1779223855000,-1493.0,0.00029105,2]
[422665492,1779223855000,-318.48,0.00029105,2]
[422665476,1779223855000,-503.0,0.00029071,4]
[422665486,1779223855000,-1779.45,0.00029105,2]
[422665483,1779223855000,-318.48,0.00029074,30]
[422665480,1779223855000,-1778.78,0.00029074,30]
[422665485,1779223855000,-49306.29,0.000291,2]
[422665493,1779223855000,-200.0,0.0002913,20]
[422665482,1779223855000,-1493.0,0.00029074,30]
[422665484,1779223855000,-49306.29,0.000291,2]
[422665488,1779223855000,-1492.98,0.00029105,2]
[422665487,1779223855000,-319.2,0.00029105,2]
[422665489,1779223855000,-1778.78,0.00029105,2]
[422665556,1779223856000,-1387.34,0.00029533,7]
[422665549,1779223856000,-2314.0,0.0002949,3]
[422665555,1779223856000,-303.99385822,0.0002953,7]
[422665552,1779223856000,-197.450301,0.000295,7]
[422665551,1779223856000,-1587.0,0.0002949,3]
[422665550,1779223856000,-2314.0,0.0002949,3]
[422665547,1779223856000,-2314.0,0.0002949,3]
[422665553,1779223856000,-600.0,0.00029522,60]
[422665558,1779223856000,-1122.7,0.0002956,30]
[422665545,1779223856000,-1587.0,0.0002949,3]
[422665554,1779223856000,-362.1644251,0.00029528,2]
[422665557,1779223856000,-150.0,0.00029534,2]
[422665570,1779223856000,-10000.0,0.00029829,2]
[422665559,1779223856000,-6865.5,0.000296,14]
[422665568,1779223856000,-2314.0,0.0002981,3]
[422665567,1779223856000,-2314.0,0.0002981,3]
[422665562,1779223856000,-215.15951567,0.000297,10]
[422665565,1779223856000,-2314.0,0.0002981,3]
[422665564,1779223856000,-8715.57779158,0.000298,2]
[422665563,1779223856000,-503.0,0.00029716,4]
[422665561,1779223856000,-215.15951567,0.000297,30]
[422665566,1779223856000,-163.0,0.0002981,3]
[422665569,1779223856000,-1587.0,0.0002981,3]
[422665580,1779223856000,-25778.05746195,0.0003,7]
[422665573,1779223856000,-500.0,0.00029836,30]
[422665546,1779223856000,-163.0,0.0002949,3]
[422665560,1779223856000,-4000.0,0.000296,7]
[422665548,1779223856000,-2314.0,0.0002949,3]
[422665527,1779223856000,-318.48,0.00029201,2]
[422665538,1779223856000,-3806.18,0.00029284,7]
[422665520,1779223856000,-803.1,0.000292,7]
[422665519,1779223856000,-1587.0,0.0002917,3]
[422665518,1779223856000,-2313.0,0.0002917,3]
[422665517,1779223856000,-2314.0,0.0002917,3]
[422665521,1779223856000,-1779.45,0.00029201,2]
[422665528,1779223856000,-1493.03,0.00029232,7]
[422665524,1779223856000,-1778.78,0.00029201,2]
[422665581,1779223856000,-25778.05746195,0.0003,7]
[422665522,1779223856000,-319.2,0.00029201,2]
[422665526,1779223856000,-1493.0,0.00029201,2]
[422665532,1779223856000,-1492.98,0.00029232,7]
[422665529,1779223856000,-1779.52,0.00029232,7]
[422665543,1779223856000,-514.09,0.0002948,7]
[422665530,1779223856000,-748.53,0.00029232,7]
[422665531,1779223856000,-319.38,0.00029232,7]
[422665523,1779223856000,-1492.98,0.00029201,2]
[422665544,1779223856000,-1587.0,0.0002949,3]
[422665534,1779223856000,-606.29,0.00029232,7]
[422665533,1779223856000,-1778.82,0.00029232,7]
[422665536,1779223856000,-318.6,0.00029232,7]
[422665535,1779223856000,-1493.11,0.00029232,7]
[422665541,1779223856000,-1241.12,0.0002948,7]
[422665539,1779223856000,-265.39,0.000293,7]
[422665537,1779223856000,-1122.7,0.00029271,7]
[422665540,1779223856000,-200.0,0.0002933,20]
[422665542,1779223856000,-615.55,0.0002948,7]
[422665525,1779223856000,-606.27,0.00029201,2]
[422665571,1779223856000,-500.0,0.00029836,30]
[422665615,1779223856000,-644.38078689,0.0003013,2]
[422665577,1779223856000,-179.73,0.00029999,3]
[422665606,1779223856000,-3438.60448796,0.000301,2]
[422665608,1779223856000,-151.0,0.0003011,7]
[422665609,1779223856000,-236.546212,0.00030113,7]
[422665610,1779223856000,-25981.0681365,0.00030117,2]
[422665611,1779223856000,-151.0,0.00030127,7]
[422665617,1779223856000,-2452090.63621013,0.0003013,7]
[422665613,1779223856000,-1091.08783674,0.0003013,2]
[422665614,1779223856000,-14076.48827099,0.0003013,2]
[422665616,1779223856000,-204.99260449,0.0003013,2]
[422665612,1779223856000,-200.91034819,0.0003013,2]
[422665619,1779223856000,-1697.91513355,0.0003013,7]
[422665618,1779223856000,-322.0,0.00017673,2]
[422665607,1779223856000,-46790.7496547,0.00030101,2]
[422665625,1779223856000,-421.74659861,0.0003013,7]
[422665624,1779223856000,-421.74659861,0.0003013,7]
[422665621,1779223856000,-50056.93728477,0.0003013,2]
[422665623,1779223856000,-25778.05746195,0.0003013,7]
[422665622,1779223856000,-25778.05746195,0.0003013,7]
[422665627,1779223856000,-151.0,0.0003013,7]
[422665629,1779223856000,-151.0,0.0003013,7]
[422665631,1779223856000,-151.0,0.0003013,7]
[422665628,1779223856000,-151.0,0.0003013,7]
[422665632,1779223856000,-299.123676,0.0003013,7]
[422665630,1779223856000,-151.0,0.0003013,7]
[422665633,1779223856000,-151.0,0.0003013,7]
[422665572,1779223856000,-500.0,0.00029836,30]
[422665626,1779223856000,-156.024164,0.0003013,7]
[422665600,1779223856000,-863.57261544,0.0003003,2]
[422665620,1779223856000,-243323.0431238,0.0003013,7]
[422665604,1779223856000,-3438.60448797,0.000301,2]
[422665579,1779223856000,-908.78626477,0.0003,10]
[422665595,1779223856000,-1218.61,0.0003,30]
[422665578,1779223856000,-179.74,0.00029999,3]
[422665576,1779223856000,-2600.0,0.000299,10]
[422665575,1779223856000,-1122.7,0.00029848,2]
[422665574,1779223856000,-197.10940344,0.00029836,30]
[422665583,1779223856000,-421.74659861,0.0003,7]
[422665593,1779223856000,-625.0,0.0003,2]
[422665584,1779223856000,-4620.0,0.0003,30]
[422665585,1779223856000,-5999.999999,0.0003,3]
[422665589,1779223856000,-650.0,0.0003,2]
[422665588,1779223856000,-2000.0,0.0003,3]
[422665587,1779223856000,-199.0,0.0003,7]
[422665582,1779223856000,-421.74659861,0.0003,7]
[422665590,1779223856000,-215.15951567,0.0003,7]
[422665605,1779223856000,-3438.60448796,0.000301,2]
[422665601,1779223856000,-496.88912515,0.00030051,7]
[422665603,1779223856000,-150.0,0.000301,8]
[422665599,1779223856000,-215.15951567,0.0003,3]
[422665597,1779223856000,-869.96217744,0.0003,2]
[422665596,1779223856000,-869.96217746,0.0003,2]
[422665598,1779223856000,-869.96217744,0.0003,2]
[422665594,1779223856000,-3544.0,0.0003,2]
[422665592,1779223856000,-160.0,0.0003,3]
[422665591,1779223856000,-179.08116534,0.0003,3]
[422665586,1779223856000,-10124.17314282,0.0003,2]
[422665602,1779223856000,-1300.0,0.0003007,60]
[422665682,1779223857000,-151.0,0.0003013,7]
[422665672,1779223857000,-151.0,0.0003013,7]
[422665675,1779223857000,-978.198356,0.0003013,7]
[422665673,1779223857000,-151.0,0.0003013,7]
[422665678,1779223857000,-151.0,0.0003013,7]
[422665674,1779223857000,-978.198356,0.0003013,7]
[422665676,1779223857000,-978.198356,0.0003013,7]
[422665670,1779223857000,-151.0,0.0003013,7]
[422665669,1779223857000,-151.0,0.0003013,7]
[422665668,1779223857000,-151.0,0.0003013,7]
[422665677,1779223857000,-978.198356,0.0003013,7]
[422665692,1779223857000,-151.0,0.00030132,7]
[422665671,1779223857000,-151.0,0.0003013,7]
[422665690,1779223857000,-117228.8443215,0.00030131,2]
[422665696,1779223857000,-2030.48613546,0.00030136,30]
[422665681,1779223857000,-151.0,0.0003013,7]
[422665680,1779223857000,-151.0,0.0003013,7]
[422665687,1779223857000,-151.0,0.0003013,7]
[422665679,1779223857000,-151.0,0.0003013,7]
[422665688,1779223857000,-12505.7349954,0.00030131,2]
[422665683,1779223857000,-151.0,0.0003013,7]
[422665685,1779223857000,-151.0,0.0003013,7]
[422665689,1779223857000,-437346.7195579,0.00030131,2]
[422665684,1779223857000,-151.0,0.0003013,7]
[422665686,1779223857000,-151.0,0.0003013,7]
[422665693,1779223857000,-150.0,0.00030135,30]
[422665695,1779223857000,-151.0,0.00030136,2]
[422665694,1779223857000,-200.0,0.00030135,2]
[422665667,1779223857000,-151.0,0.0003013,7]
[422665691,1779223857000,-59811.7285505,0.00030131,2]
[422665665,1779223857000,-167.497542,0.0003013,7]
[422665641,1779223857000,-151.0,0.0003013,7]
[422665657,1779223857000,-254.52837,0.0003013,7]
[422665697,1779223857000,-354.35,0.00030136,30]
[422665634,1779223857000,-151.0,0.0003013,7]
[422665635,1779223857000,-293.616789,0.0003013,7]
[422665636,1779223857000,-474.477655,0.0003013,7]
[422665637,1779223857000,-474.477655,0.0003013,7]
[422665639,1779223857000,-474.477655,0.0003013,7]
[422665640,1779223857000,-151.0,0.0003013,7]
[422665638,1779223857000,-474.477655,0.0003013,7]
[422665648,1779223857000,-330.848722,0.0003013,7]
[422665644,1779223857000,-338.091489,0.0003013,7]
[422665646,1779223857000,-338.091489,0.0003013,7]
[422665650,1779223857000,-151.0,0.0003013,2]
[422665643,1779223857000,-338.091489,0.0003013,7]
[422665649,1779223857000,-330.848722,0.0003013,7]
[422665666,1779223857000,-151.0,0.0003013,7]
[422665642,1779223857000,-220.16730804,0.0003013,7]
[422665645,1779223857000,-338.091489,0.0003013,7]
[422665660,1779223857000,-254.52837,0.0003013,7]
[422665661,1779223857000,-254.52837,0.0003013,7]
[422665651,1779223857000,-330.848722,0.0003013,7]
[422665663,1779223857000,-167.497542,0.0003013,7]
[422665664,1779223857000,-167.497542,0.0003013,7]
[422665662,1779223857000,-167.497542,0.0003013,7]
[422665653,1779223857000,-151.0,0.0003013,2]
[422665652,1779223857000,-151.0,0.0003013,2]
[422665656,1779223857000,-151.0,0.0003013,2]
[422665658,1779223857000,-157.131723,0.0003013,2]
[422665659,1779223857000,-254.52837,0.0003013,7]
[422665655,1779223857000,-151.0,0.0003013,2]
[422665654,1779223857000,-151.0,0.0003013,2]
[422665647,1779223857000,-330.848722,0.0003013,7]
[422665705,1779223857000,-165.0,0.00030137,2]
[422665703,1779223857000,-151.28542447,0.00030137,2]
[422665704,1779223857000,-255.0,0.00030137,120]
[422665746,1779223857000,-1587.0,0.00030391,3]
[422665734,1779223857000,-382.3,0.00030239,2]
[422665745,1779223857000,-597.09,0.00030365,7]
[422665733,1779223857000,-390.0,0.00030212,30]
[422665737,1779223857000,-265.39,0.000303,7]
[422665740,1779223857000,-1000.0,0.0003034,2]
[422665735,1779223857000,-2314.0,0.00030294,3]
[422665739,1779223857000,-1000.0,0.0003034,2]
[422665736,1779223857000,-6865.5,0.000303,14]
[422665742,1779223857000,-1000.0,0.0003034,2]
[422665741,1779223857000,-1000.0,0.0003034,2]
[422665738,1779223857000,-1000.0,0.0003034,2]
[422665748,1779223857000,-1000.0,0.00030425,2]
[422665747,1779223857000,-1345.72,0.00030419,7]
[422665743,1779223857000,-503.0,0.0003036,5]
[422665758,1779223857000,-206.24141652,0.000305,2]
[422665753,1779223857000,-163.0,0.00030427,3]
[422665749,1779223857000,-1000.0,0.00030425,2]
[422665755,1779223857000,-341.17976665,0.00030496,2]
[422665754,1779223857000,-200.0,0.00030436,2]
[422665751,1779223857000,-1000.0,0.00030425,2]
[422665752,1779223857000,-1000.0,0.00030425,2]
[422665750,1779223857000,-1000.0,0.00030425,2]
[422665760,1779223857000,-223.29344094,0.000305,2]
[422665759,1779223857000,-162.73122119,0.000305,7]
[422665761,1779223857000,-210.13389606,0.000305,7]
[422665762,1779223857000,-192.7817306,0.000305,7]
[422665764,1779223857000,-207.45185816,0.000305,7]
[422665765,1779223857000,-350.4043604,0.00030543,7]
[422665699,1779223857000,-500.0,0.00030137,2]
[422665757,1779223857000,-176.04714497,0.000305,2]
[422665744,1779223857000,-1203.89,0.00030365,7]
[422665756,1779223857000,-504.29467071,0.000305,7]
[422665731,1779223857000,-154.0,0.00030212,30]
[422665732,1779223857000,-251.0,0.00030212,30]
[422665763,1779223857000,-238.39036139,0.000305,7]
[422665698,1779223857000,-354.35,0.00030136,30]
[422665700,1779223857000,-749.6,0.00030137,2]
[422665701,1779223857000,-200.0,0.00030137,2]
[422665706,1779223857000,-212.0,0.00030137,2]
[422665707,1779223857000,-362.1644251,0.00030137,2]
[422665709,1779223857000,-1196.04276732,0.00030137,120]
[422665717,1779223857000,-157.0,0.00030161,30]
[422665708,1779223857000,-362.1644251,0.00030137,30]
[422665710,1779223857000,-361.88,0.00030137,2]
[422665718,1779223857000,-152.0,0.00030187,30]
[422665711,1779223857000,-368.89,0.00030137,2]
[422665713,1779223857000,-368.88,0.00030137,2]
[422665716,1779223857000,-368.88,0.00030138,2]
[422665702,1779223857000,-1011.21,0.00030137,2]
[422665712,1779223857000,-368.89,0.00030137,2]
[422665715,1779223857000,-715.15661973,0.00030137,2]
[422665727,1779223857000,-213.8556438,0.000302,2]
[422665725,1779223857000,-15786.78333361,0.000302,2]
[422665728,1779223857000,-150.0,0.00030205,2]
[422665730,1779223857000,-165.0,0.00030212,30]
[422665726,1779223857000,-402.14,0.000302,2]
[422665724,1779223857000,-2985.93,0.000302,2]
[422665720,1779223857000,-152.0,0.00030187,30]
[422665729,1779223857000,-164.0,0.00030212,30]
[422665723,1779223857000,-328.0,0.00030187,30]
[422665722,1779223857000,-157.0,0.00030187,30]
[422665721,1779223857000,-153.0,0.00030187,30]
[422665719,1779223857000,-300.0,0.00030187,30]
[422665714,1779223857000,-322.21,0.00030137,2]
[422665803,1779223858000,-844.85,0.00031313,7]
[422665801,1779223858000,-1166.66,0.00031249,7]
[422665799,1779223858000,-390.0,0.00031212,30]
[422665802,1779223858000,-1304.1,0.00031305,7]
[422665797,1779223858000,-154.0,0.00031212,30]
[422665796,1779223858000,-165.0,0.00031212,30]
[422665792,1779223858000,-382.811538,0.000312,7]
[422665794,1779223858000,-382.811538,0.000312,7]
[422665793,1779223858000,-398.123999,0.000312,7]
[422665795,1779223858000,-164.0,0.00031212,30]
[422665808,1779223858000,-756.44200606,0.00031405,7]
[422665809,1779223858000,-171.6544133,0.00031405,7]
[422665800,1779223858000,-5231.64,0.00031213,7]
[422665804,1779223858000,-200.0,0.00031359,2]
[422665806,1779223858000,-511.76964998,0.00031401,2]
[422665805,1779223858000,-202.69115784,0.00031378,90]
[422665807,1779223858000,-274.85149076,0.00031405,7]
[422665812,1779223858000,-412.48283304,0.00031405,2]
[422665811,1779223858000,-352.09428995,0.00031405,2]
[422665822,1779223858000,-6865.5,0.000315,14]
[422665819,1779223858000,-525.6065406,0.00031449,7]
[422665791,1779223858000,-398.123999,0.000312,7]
[422665817,1779223858000,-476.78072279,0.00031405,7]
[422665810,1779223858000,-213.75557111,0.00031405,7]
[422665790,1779223858000,-328.0,0.00031187,30]
[422665781,1779223858000,-265.39,0.000311,7]
[422665787,1779223858000,-152.0,0.00031187,30]
[422665815,1779223858000,-420.26779212,0.00031405,7]
[422665770,1779223858000,-1635.26818831,0.0003084,2]
[422665771,1779223858000,-6865.5,0.000309,14]
[422665772,1779223858000,-362.1644251,0.0003092,30]
[422665766,1779223858000,-155.19696045,0.00030547,2]
[422665767,1779223858000,-803.1,0.000306,7]
[422665769,1779223858000,-200.0,0.00030741,2]
[422665768,1779223858000,-500.0,0.00030712,2]
[422665773,1779223858000,-11542.66305934,0.00031,2]
[422665778,1779223858000,-150.0,0.00031011,2]
[422665776,1779223858000,-503.0,0.00031005,6]
[422665777,1779223858000,-8239.32979148,0.00031009,30]
[422665779,1779223858000,-200.0,0.00031048,2]
[422665775,1779223858000,-2226.53711816,0.00031,2]
[422665780,1779223858000,-200.0,0.00031096,2]
[422665774,1779223858000,-349.91781792,0.00031,5]
[422665782,1779223858000,-3806.18,0.00031141,7]
[422665783,1779223858000,-157.0,0.00031161,30]
[422665784,1779223858000,-600.0,0.00031166,60]
[422665785,1779223858000,-152.0,0.00031187,30]
[422665786,1779223858000,-300.0,0.00031187,30]
[422665788,1779223858000,-153.0,0.00031187,30]
[422665798,1779223858000,-251.0,0.00031212,30]
[422665789,1779223858000,-157.0,0.00031187,30]
[422665816,1779223858000,-385.56346119,0.00031405,7]
[422665813,1779223858000,-325.46244238,0.00031405,7]
[422665814,1779223858000,-446.58688188,0.00031405,2]
[422665845,1779223858000,-700.0,0.00032,2]
[422665847,1779223858000,-185.8409125,0.00032004,5]
[422665848,1779223858000,-682.3595333,0.00032004,2]
[422665844,1779223858000,-1761.39419145,0.00032,2]
[422665852,1779223858000,-1008.58934141,0.00032009,7]
[422665849,1779223858000,-165.0169709,0.00032009,7]
[422665851,1779223858000,-549.70298151,0.00032009,7]
[422665856,1779223858000,-420.18080447,0.00032009,7]
[422665854,1779223858000,-229.03495195,0.00032009,7]
[422665860,1779223858000,-528.14143492,0.00032009,2]
[422665864,1779223858000,-488.19366357,0.00032009,7]
[422665862,1779223858000,-618.72424956,0.00032009,2]